bitfinex/quotes_ETHUSD_20240716
["timestamp","ask_amount","ask_price","bid_price","bid_amount"]
[1721138754164,0.04455049,3385.9,3384.9,2.95426]
[1721138754165,2.98834676,3386.1,3385.0,0.55]
[1721138754448,0.04455049,3385.8,3385.0,0.55]
[1721138754665,2.95338,3386.0,3385.0,0.55]
[1721138754806,0.04455049,3385.7,3385.2,2.4722]
[1721138755012,2.95259,3386.9,3385.8,2.4722]
[1721138755549,0.04455049,3386.8,3385.9,3.5034]
[1721138755875,2.9523,3387.2,3385.8,5.42563]
[1721138755876,2.95255,3386.9,3386.0,0.55]
[1721138756053,0.04472842,3386.7,3385.8,2.4722]
[1721138756223,2.95317,3386.2,3385.8,2.4722]
[1721138756427,2.95259,3386.9,3385.8,2.4722]
[1721138756428,0.04472842,3386.6,3385.8,2.4722]
[1721138756733,2.95317,3386.2,3385.8,2.4722]
[1721138756948,2.95259,3386.9,3385.8,2.4722]
[1721138756949,2.95333,3386.1,3385.8,2.4722]
[1721138757148,2.95333,3386.1,3384.8,3.0052766]
[1721138757149,0.04483274,3386.1,3384.9,2.3602]
[1721138757328,2.95356,3385.8,3384.9,2.3602]
[1721138757529,2.95337,3386.0,3384.9,2.3602]
[1721138757530,0.04490115,3385.7,3384.9,2.3602]
[1721138757727,1.7,3386.6,3384.9,2.3602]
[1721138757728,2.95301,3386.4,3384.9,3.19220166]
[1721138757969,0.04490115,3385.6,3385.2,2.95397]
[1721138758261,2.95301,3386.4,3385.3,2.95392]
[1721138758262,2.95304,3386.4,3385.3,2.95392]
[1721138758568,2.95304,3386.4,3384.9,2.3602]
[1721138758569,0.04485328,3386.3,3385.6,2.95366]
[1721138758739,3.562,3387.5,3384.8,0.0509166]
[1721138758740,2.95247,3387.0,3385.9,2.95338]
[1721138759065,6.51353,3388.1,3385.8,2.3602]
[1721138759066,0.04481053,3386.2,3385.8,2.3602]
[1721138759225,2.95237,3387.2,3385.8,2.3602]
[1721138759426,0.04480369,3386.1,3385.8,2.3602]
[1721138759750,2.95265,3386.8,3385.8,5.31369]
[1721138759949,0.04480369,3386.0,3385.9,0.55]
[1721138760147,2.95261,3386.9,3385.9,0.55]
[1721138760148,2.95257,3386.9,3385.9,0.55]
[1721138760325,2.95257,3386.9,3385.8,2.3602]
[1721138760326,2.95325,3386.1,3385.8,2.3602]
[1721138760526,1.7,3387.4,3385.3,2.2718]
[1721138760527,0.04480369,3386.0,3385.3,2.2718]
[1721138760761,1.7,3387.4,3385.3,2.2718]
[1721138760762,2.95314,3386.3,3385.3,2.2718]
[1721138760932,0.04480369,3385.9,3385.3,2.2718]
[1721138761133,2.95342,3385.9,3385.3,2.2718]
[1721138761336,0.04480369,3385.8,3385.3,2.2718]
[1721138761845,2.95302,3386.4,3385.3,2.2718]
[1721138762044,0.04480369,3385.7,3385.4,0.05906733]
[1721138762366,0.04480369,3385.7,3385.3,2.2718]
[1721138762367,2.95325,3386.1,3385.3,2.2718]
[1721138762528,2.95278,3386.7,3385.3,2.2718]
[1721138762529,7.75687,3386.6,3385.3,2.2718]
[1721138762731,7.75687,3386.6,3384.8,0.0509166]
[1721138762732,2.95369,3385.6,3384.8,0.0509166]
[1721138762925,2.95288,3386.6,3384.8,0.0509166]
[1721138763125,0.90078902,3387.3,3384.8,0.0509166]
[1721138763126,0.04476432,3386.5,3385.5,2.2708]
[1721138763355,0.04476432,3386.5,3385.6,0.22708]
[1721138763574,2.95258,3386.9,3385.6,0.22708]
[1721138763575,2.95258,3386.9,3385.7,2.95353]
[1721138763892,1.73870921,3387.6,3385.8,2.95347]
[1721138763893,0.04476432,3386.4,3385.8,2.95347]
[1721138764033,1.1381832,3387.6,3386.3,2.4631]
[1721138764034,2.95229,3387.2,3386.3,2.4631]
[1721138764386,2.9518,3387.8,3386.6,2.95275]
[1721138764387,2.95177,3387.8,3386.6,2.95275]
[1721138764531,3.55192601,3388.3,3387.1,2.95235]
[1721138764861,2.9514,3388.3,3387.2,0.55]
[1721138765043,2.95144,3388.2,3387.2,0.55]
[1721138765568,3.85164902,3388.9,3387.2,0.55]
[1721138765569,2.95098,3388.7,3387.4,2.9521]
[1721138765777,2.95081,3388.9,3387.5,3.502]
[1721138765977,2.95107,3388.6,3387.6,2.2527]
[1721138766481,2.95055,3389.2,3387.6,2.82818]
[1721138766656,2.9507,3389.1,3387.9,2.95166]
[1721138766854,2.9507,3389.1,3387.7,3.50179]
[1721138766855,2.9507,3389.1,3388.0,5.75428]
[1721138767185,2.95026,3389.6,3388.3,2.95126]
[1721138767386,0.60052601,3390.0,3388.8,2.4883]
[1721138767387,2.94999,3389.9,3388.8,2.4883]
[1721138767693,2.94999,3389.9,3388.9,0.55]
[1721138768048,2.9497,3390.2,3388.9,3.50079]
[1721138768246,2.9497,3390.2,3389.1,2.95057]
[1721138768601,2.94923,3390.8,3388.4,6.05518]
[1721138768602,1.7,3390.7,3388.4,2.2787]
[1721138768744,2.94995,3389.9,3388.6,2.95106]
[1721138768951,0.6060165,3390.7,3389.3,2.95045]
[1721138769311,0.6060165,3390.7,3388.7,4.112]
[1721138769312,2.94874,3391.3,3389.9,2.3942]
[1721138769455,2.94898,3391.0,3389.9,2.3942]
[1721138769795,2.94882,3391.2,3390.0,0.55]
[1721138770087,12.22296476,3392.2,3389.9,2.3942]
[1721138770088,2.94915,3390.8,3389.9,2.3942]
[1721138770450,2.94915,3390.8,3389.2,2.3203]
[1721138770451,2.94978,3390.1,3389.2,2.3203]
[1721138770682,2.94988,3390.0,3389.2,2.3203]
[1721138770994,2.94974,3390.2,3389.2,2.3203]
[1721138771294,2.94974,3390.2,3387.9,3.104]
[1721138771295,2.95064,3389.1,3388.2,2.4708]
[1721138771455,2.95013,3389.7,3388.2,2.4708]
[1721138771456,2.9505,3389.3,3388.2,2.4708]
[1721138771657,2.95004,3389.8,3388.2,2.4708]
[1721138771658,2.95063,3389.1,3388.2,2.4708]
[1721138771956,2.95021,3389.6,3388.3,2.95131]
[1721138772156,6.104,3390.3,3388.3,2.95131]
[1721138772479,2.94986,3390.0,3388.3,2.95131]
[1721138772655,2.94976,3390.1,3388.8,2.95084]
[1721138772852,2.94946,3390.5,3388.3,5.4285]
[1721138773056,2.94974,3390.2,3389.3,2.3245]
[1721138773588,0.04008408,3390.1,3389.3,2.3245]
[1721138774362,2.94988,3390.0,3389.3,2.3245]
[1721138774557,0.0402104,3389.9,3389.3,2.3245]
[1721138774783,2.94956,3390.4,3389.3,2.3245]
[1721138775016,0.03892271,3389.8,3389.3,5.802453]
[1721138775297,6.666,3391.3,3389.3,2.852013]
[1721138775298,2.94957,3390.4,3389.3,2.852013]
[1721138775615,2.94981,3390.1,3389.3,2.3245]
[1721138775967,2.94881,3391.2,3389.3,5.27495]
[1721138776161,0.6060165,3391.5,3389.3,2.3245]
[1721138776162,2.94924,3390.7,3389.3,2.3245]
[1721138776361,2.94861,3391.5,3389.3,2.3245]
[1721138776362,3.0,3391.2,3389.3,2.3245]
[1721138776598,2.94984,3390.1,3389.3,2.3245]
[1721138777062,2.95013,3389.7,3389.3,2.3245]
[1721138777382,2.95,3389.9,3389.3,2.3245]
[1721138777586,0.03892271,3389.6,3389.3,2.3245]
[1721138777764,2.95,3389.9,3389.3,2.3245]
[1721138778097,0.03892271,3389.5,3389.3,2.3245]
[1721138778413,0.03892271,3389.4,3389.3,2.3245]
[1721138778613,2.95027,3389.6,3389.3,2.3245]
[1721138778757,0.03892271,3389.4,3389.3,2.3245]
[1721138778963,5.90054,3389.6,3389.3,2.3245]
[1721138778964,2.9503,3389.5,3389.3,2.3245]
[1721138779163,0.03892271,3389.4,3389.3,2.3245]
[1721138779477,2.94999,3389.9,3389.3,2.3245]
[1721138779784,2.95011,3389.7,3389.3,2.3245]
[1721138779985,2.94907,3390.9,3389.3,2.3245]
[1721138779986,2.94979,3390.1,3389.3,2.3245]
[1721138780209,2.94999,3389.9,3389.3,2.3245]
[1721138780360,2.95002,3389.8,3389.3,2.3245]
[1721138780556,2.94985,3390.0,3389.3,2.3245]
[1721138780876,0.03892271,3389.9,3389.3,2.3245]
[1721138781521,2.94926,3390.7,3389.3,5.69260258]
[1721138781734,0.03892271,3389.8,3389.3,2.3245]
[1721138781916,3.0,3391.0,3389.3,2.3245]
[1721138781917,2.9493,3390.7,3389.3,2.3245]
[1721138782116,0.03895179,3389.7,3389.4,2.95037]
[1721138782434,2.94951,3390.4,3389.4,2.95037]
[1721138782631,0.03895179,3389.6,3389.4,2.95037]
[1721138782939,2.94938,3390.6,3389.4,3.772908]
[1721138783436,3.562,3391.3,3389.4,3.772908]
[1721138783437,0.03898942,3390.5,3389.5,2.8985]
[1721138783598,2.94897,3391.1,3389.9,2.94993]
[1721138783797,0.03913137,3390.4,3390.1,2.94972]
[1721138783999,2.94892,3391.1,3390.0,2.94984]
[1721138784299,0.03913137,3390.3,3390.1,2.9497]
[1721138784497,2.94892,3391.1,3390.1,3.539662]
[1721138784821,3.562,3391.9,3390.2,2.94967]
[1721138784822,0.03913137,3391.0,3390.2,2.94967]
[1721138784986,2.94872,3391.3,3390.2,2.94967]
[1721138785183,0.03913137,3390.9,3390.3,5.43338]
[1721138785515,2.94836,3391.8,3390.6,2.94932]
[1721138785516,2.94849,3391.6,3390.6,2.94932]
[1721138785823,1.13463276,3392.0,3390.3,5.43338]
[1721138785824,2.94869,3391.4,3390.3,5.43339]
[1721138786031,0.03913137,3391.5,3390.5,2.94937]
[1721138786185,2.94846,3391.6,3390.5,2.94937]
[1721138786384,0.03913137,3391.4,3390.5,2.94937]
[1721138786630,2.9479,3392.3,3390.4,0.8973102]
[1721138786631,3.104,3392.4,3390.4,0.8973102]
[1721138786782,0.03913137,3391.3,3390.6,0.0589775]
[1721138786984,3.562,3392.5,3390.8,2.94914]
[1721138786985,2.94795,3392.2,3390.8,2.94914]
[1721138787250,0.03913137,3391.2,3391.0,2.94897]
[1721138787530,2.94795,3392.2,3391.1,2.94889]
[1721138787884,2.94795,3392.2,3391.2,2.9488]
[1721138787885,0.03913137,3392.1,3391.2,2.9488]
[1721138788304,0.03913137,3392.1,3390.9,2.4298]
[1721138788593,0.03913137,3392.0,3391.1,2.94889]
[1721138788794,0.03913137,3392.0,3391.2,0.55]
[1721138789029,6.50922,3393.1,3391.0,0.24298]
[1721138789030,2.94803,3392.1,3391.0,3.19188]
[1721138789190,0.03913137,3391.9,3390.9,2.4298]
[1721138789530,1.7,3393.0,3391.0,0.55]
[1721138789746,1.7,3393.0,3391.1,0.29798]
[1721138789747,0.03913137,3391.8,3391.1,0.29798]
[1721138789889,2.94785,3392.3,3391.3,2.94865]
[1721138790090,0.03947829,3391.7,3391.4,2.94863]
[1721138790310,6.05115,3393.2,3391.1,3.24684]
[1721138790311,2.94777,3392.4,3391.2,2.9488]
[1721138790509,0.03947829,3391.6,3391.3,2.94871]
[1721138790830,9.50921,3393.1,3391.5,2.94851]
[1721138790831,2.94763,3392.6,3391.5,2.94851]
[1721138791038,0.03946292,3391.5,3391.3,0.674558]
[1721138791343,2.94819,3392.0,3390.7,2.94916]
[1721138791494,2.94819,3392.0,3390.0,3.104]
[1721138791495,2.94819,3392.0,3391.0,2.94897]
[1721138791689,0.0395039,3391.9,3390.7,2.94921]
[1721138792143,0.0395039,3391.9,3390.5,2.9494]
[1721138792144,2.94837,3391.7,3390.6,2.9493]
[1721138792333,2.94837,3391.7,3390.6,2.94926]
[1721138792490,0.06516194,3391.6,3390.3,2.94953]
[1721138792690,0.02571781,3391.5,3391.0,0.24298]
[1721138792890,0.02571781,3391.5,3390.6,2.94926]
[1721138793206,0.03944071,3391.4,3390.5,2.94934]
[1721138793409,0.02571781,3391.3,3390.5,2.94934]
[1721138793621,0.06512094,3391.3,3390.3,2.94958]
[1721138793796,0.06512094,3391.3,3390.5,2.94935]
[1721138793996,0.06512094,3391.3,3390.6,2.94932]
[1721138794428,0.06512094,3391.3,3391.2,2.9488]
[1721138794748,0.06512094,3391.3,3391.2,3.48666]
[1721138794749,0.02571781,3391.3,3391.2,3.48666]
[1721138795251,0.0653722,3391.3,3391.2,3.48666]
[1721138795456,0.02571781,3391.3,3391.2,3.48666]
[1721138795938,0.02571781,3391.3,3391.2,0.53786]
[1721138796142,0.02571781,3391.3,3391.0,2.94893]
[1721138796445,0.02571781,3391.3,3390.9,2.4298]
[1721138796746,2.98858443,3391.2,3390.0,2.94984]
[1721138796905,0.02578509,3391.1,3390.1,2.94975]
[1721138797234,2.97469509,3391.1,3390.1,0.589959]
[1721138797433,0.03972273,3391.0,3390.0,2.94984]
[1721138797727,0.02578509,3390.9,3390.0,2.94984]
[1721138797932,0.02578509,3390.9,3390.4,2.4029]
[1721138798105,0.03967148,3390.8,3390.4,2.4029]
[1721138798306,0.02578509,3390.7,3390.5,2.94934]
[1721138798528,0.02578509,3390.7,3390.6,0.535224]
[1721138798701,0.02578509,3390.7,3390.6,3.484554]
[1721138799314,0.02578509,3390.7,3390.6,6.983884]
[1721138801882,0.02578509,3390.7,3390.6,9.933214]
[1721138802023,5.94782,3392.4,3391.3,2.94866]
[1721138802224,5.94782,3392.4,3391.4,1.139751]
[1721138802459,5.94782,3392.4,3391.4,0.55]
[1721138803058,2.94789,3392.3,3391.4,0.55]
[1721138803275,2.94789,3392.3,3391.3,0.55]
[1721138803425,5.94782,3392.4,3391.4,2.94862]
[1721138803621,0.03849905,3392.2,3391.5,0.55]
[1721138803863,2.94769,3392.5,3391.4,2.94863]
[1721138804065,2.94759,3392.6,3391.6,2.3699]
[1721138804066,0.03849905,3392.1,3391.6,2.3699]
[1721138804272,2.94759,3392.6,3391.6,2.3699]
[1721138804430,0.03849905,3392.0,3391.6,2.3699]
[1721138804628,2.94778,3392.4,3391.6,2.3699]
[1721138804859,0.03849734,3391.9,3391.6,2.3699]
[1721138805048,2.94778,3392.4,3391.6,2.3699]
[1721138805238,0.03849734,3391.8,3391.6,2.3699]
[1721138805451,2.94778,3392.4,3391.7,0.5963148]
[1721138805631,2.94778,3392.4,3391.6,2.3699]
[1721138805632,0.03732526,3391.7,3391.6,2.3699]
[1721138805978,2.94778,3392.4,3391.6,2.3699]
[1721138805979,2.94778,3392.4,3391.6,2.9199]
[1721138806379,0.03732526,3392.3,3391.6,2.9199]
[1721138807674,0.03732526,3392.3,3390.7,3.0]
[1721138807675,2.94802,3392.1,3391.0,2.2895]
[1721138807834,2.94802,3392.1,3391.1,0.55]
[1721138808035,2.94802,3392.1,3391.1,3.78281]
[1721138808234,0.03729345,3392.0,3391.1,0.28395]
[1721138808531,0.03729345,3392.0,3391.0,5.23842]
[1721138808779,2.98540345,3392.0,3391.0,5.23842]
[1721138808963,0.03729345,3392.0,3391.1,2.94886]
[1721138809472,2.98547772,3391.9,3391.0,2.2895]
[1721138809676,2.94846,3391.6,3391.0,2.2895]
[1721138810247,0.03724885,3391.5,3391.0,2.2895]
[1721138810581,5.94764,3392.6,3391.0,2.813372]
[1721138810582,3.104,3392.5,3391.0,2.813372]
[1721138810765,0.03720424,3391.4,3391.0,2.2895]
[1721138811099,5.94776,3392.5,3391.0,2.2895]
[1721138811234,0.03720424,3391.3,3391.0,2.2895]
[1721138811612,2.94859,3391.5,3391.0,2.2895]
[1721138811735,2.94859,3391.5,3390.4,2.3839]
[1721138811736,2.94877,3391.3,3390.4,2.3839]
[1721138811940,0.03719737,3391.2,3390.4,2.3839]
[1721138812437,0.03719737,3391.2,3390.4,5.866756]
[1721138812661,2.94858,3391.5,3390.4,5.866756]
[1721138812892,0.03717507,3391.1,3390.4,5.866756]
[1721138813175,3.104,3391.9,3390.4,5.866756]
[1721138813176,3.104,3391.9,3390.4,2.3839]
[1721138813377,2.94943,3390.5,3389.8,2.3097]
[1721138813749,0.03709783,3390.4,3389.8,2.3097]
[1721138814060,2.94961,3390.3,3389.8,2.3097]
[1721138814242,2.94961,3390.3,3389.2,5.28784]
[1721138814243,2.98650707,3390.3,3389.2,5.28784]
[1721138814446,0.03689707,3390.3,3389.4,2.95037]
[1721138814753,2.94905,3391.0,3389.2,6.111694]
[1721138814754,0.60124794,3391.4,3389.8,2.95001]
[1721138815079,0.60124794,3391.4,3389.5,2.95025]
[1721138815080,2.94921,3390.8,3389.7,2.95009]
[1721138815405,0.0368181,3391.1,3389.5,2.95025]
[1721138815581,6.104,3391.1,3389.5,2.95025]
[1721138815882,2.94943,3390.5,3389.5,3.8564054]
[1721138816044,3.104,3390.9,3389.2,2.3373]
[1721138816234,2.94985,3390.0,3389.2,2.3373]
[1721138816660,0.03677861,3389.9,3389.2,2.3373]
[1721138817447,3.104,3390.7,3389.2,2.3373]
[1721138817448,2.9497,3390.2,3389.2,5.28777]
[1721138817643,3.0,3390.8,3389.2,2.3373]
[1721138817644,0.03675113,3389.8,3389.2,2.3373]
[1721138817843,4.15137589,3391.2,3389.5,2.95022]
[1721138817844,2.94942,3390.5,3389.5,2.95022]
[1721138818061,0.03668758,3389.7,3389.6,3.5002]
[1721138818232,2.94909,3390.9,3389.7,2.95009]
[1721138818437,3.55014794,3391.1,3389.7,3.00908525]
[1721138818438,2.94916,3390.8,3389.7,3.00908525]
[1721138818837,0.60124794,3391.2,3390.1,2.94975]
[1721138819075,0.60124794,3391.2,3390.1,3.244725]
[1721138819076,2.94887,3391.2,3390.1,3.244725]
[1721138819289,0.60124794,3391.3,3390.1,3.244725]
[1721138819499,2.94899,3391.0,3389.6,0.55]
[1721138819857,0.60124794,3391.2,3389.8,2.95002]
[1721138819858,2.94925,3390.7,3389.8,2.95002]
[1721138820059,2.94883,3391.2,3389.9,2.94988]
[1721138820304,0.60124794,3391.4,3390.1,2.94975]
[1721138820523,0.60124794,3391.4,3390.2,2.3117]
[1721138820524,2.94907,3390.9,3390.2,2.3117]
[1721138820856,2.94882,3391.2,3390.2,2.3117]
[1721138821055,2.94873,3391.3,3390.2,2.3117]
[1721138821282,2.94873,3391.3,3390.2,2.70297129]
[1721138821998,2.94833,3391.8,3390.7,2.94917]
[1721138821999,2.94846,3391.6,3390.7,2.94917]
[1721138822297,3.55383724,3391.9,3390.8,2.94913]
[1721138822511,3.55383724,3391.9,3390.8,3.538969]
[1721138822658,0.03910736,3391.8,3390.9,2.94905]
[1721138823359,0.03910736,3391.8,3390.8,0.589839]
[1721138823360,2.94837,3391.7,3390.8,0.589839]
[1721138823568,0.03910736,3391.8,3391.0,2.94892]
[1721138824282,0.64506188,3391.8,3390.9,2.94906]
[1721138824459,0.64506188,3391.8,3390.3,0.55]
[1721138824659,0.64506188,3391.8,3390.2,2.70297129]
[1721138824660,2.94915,3390.9,3390.2,2.3117]
[1721138824898,2.94915,3390.9,3389.8,2.95002]
[1721138824899,0.64506188,3390.9,3389.8,2.95002]
[1721138825056,6.05316,3390.8,3389.7,0.295012]
[1721138825263,6.05316,3390.8,3389.6,2.3483]
[1721138825264,2.94951,3390.4,3389.6,2.3483]
[1721138825572,0.60595452,3390.2,3389.6,2.3483]
[1721138825766,3.55572452,3390.1,3389.3,0.23373]
[1721138826099,3.55572452,3390.1,3389.0,2.4023]
[1721138826100,0.60595452,3389.9,3389.0,2.4023]
[1721138826308,0.60595452,3389.9,3389.1,2.95061]
[1721138826514,3.55581452,3390.0,3389.0,5.35298]
[1721138826720,3.55591452,3389.9,3389.0,2.4023]
[1721138826866,3.55615452,3389.6,3389.0,2.4023]
[1721138827061,0.64506188,3389.8,3389.0,2.74297845]
[1721138827360,0.64506188,3389.8,3389.1,2.95054]
[1721138827560,0.03910736,3389.8,3389.0,2.74297845]
[1721138827863,0.64506188,3389.8,3389.0,2.4023]
[1721138828188,0.60595452,3389.7,3389.0,2.4023]
[1721138828391,0.03910736,3389.8,3389.0,5.35295]
[1721138828590,0.64552526,3389.8,3389.0,5.35295]
[1721138828929,0.60649452,3389.8,3389.1,2.95063]
[1721138829215,1.51623631,3390.2,3389.0,2.4023]
[1721138829216,0.60649452,3390.2,3389.5,2.95022]
[1721138829503,0.60649452,3390.2,3389.2,0.535293]
[1721138829745,0.60649452,3390.2,3389.0,2.4023]
[1721138829746,0.60649452,3390.0,3389.0,2.4023]
[1721138830004,3.55651452,3389.8,3389.0,2.4023]
[1721138830212,2.95002,3389.8,3388.5,2.95113]
[1721138830372,0.60649452,3389.4,3388.5,2.95113]
[1721138831098,0.60649452,3389.5,3388.5,2.90113]
[1721138831287,0.60649452,3389.6,3388.6,2.95105]
[1721138831487,3.55669452,3389.6,3388.6,2.95105]
[1721138831695,3.55669452,3389.6,3388.5,3.717164]
[1721138831902,0.60649452,3389.6,3388.8,2.95083]
[1721138832120,0.60649452,3389.8,3389.1,2.95062]
[1721138832396,0.60649452,3389.8,3388.4,2.3079]
[1721138832397,2.95002,3389.8,3388.8,2.95089]
[1721138832599,0.60649452,3389.9,3388.9,2.95078]
[1721138832922,0.60649452,3389.9,3388.8,3.245979]
[1721138832923,0.60649452,3390.0,3389.1,2.95056]
[1721138833103,0.60649452,3390.1,3389.2,2.95049]
[1721138833261,0.03673902,3389.9,3389.4,2.95037]
[1721138833466,3.55601452,3390.4,3389.4,2.95037]
[1721138833697,0.03637158,3389.8,3389.5,2.95028]
[1721138833916,0.60649452,3390.4,3389.4,2.95037]
[1721138834231,0.03637158,3389.7,3389.3,2.2635]
[1721138834367,3.55617452,3390.2,3389.3,2.2635]
[1721138834368,0.60649452,3390.2,3389.3,2.2635]
[1721138834562,3.55653452,3389.8,3388.8,2.95085]
[1721138834808,2.95021,3389.6,3388.7,2.2542]
[1721138834994,3.5930561,3389.7,3388.7,2.2542]
[1721138835167,3.5930561,3389.7,3388.4,2.95123]
[1721138835168,0.60649452,3389.6,3388.4,2.95123]
[1721138835528,2.9503,3389.5,3388.4,2.95123]
[1721138835816,2.9503,3389.5,3388.5,2.9511]
[1721138836101,0.03637158,3389.4,3388.6,2.95105]
[1721138836462,0.03637158,3389.4,3388.4,3.788144]
[1721138836664,2.95049,3389.3,3388.1,2.4671]
[1721138836901,4.02249452,3389.4,3388.1,2.4671]
[1721138837065,2.9509,3388.8,3388.1,2.4671]
[1721138837279,2.95133,3388.3,3387.5,2.2954]
[1721138837478,2.95151,3388.1,3387.5,2.2954]
[1721138837686,2.95141,3388.2,3387.5,2.2954]
[1721138837913,0.03637158,3388.0,3387.5,2.2954]
[1721138838097,2.95125,3388.4,3387.5,2.2954]
[1721138838417,0.03637158,3387.9,3387.5,2.2954]
[1721138838578,2.95137,3388.3,3387.5,2.2954]
[1721138839114,2.95153,3388.1,3387.5,2.2954]
[1721138839271,0.03613268,3388.2,3387.5,2.2954]
[1721138839272,2.98759268,3388.2,3387.5,2.2954]
[1721138839611,2.95117,3388.5,3387.5,2.2954]
[1721138839845,0.03613268,3388.1,3388.0,2.95159]
[1721138840007,0.60649452,3389.3,3387.5,2.82016]
[1721138840169,3.416,3389.4,3387.5,2.82016]
[1721138840170,2.95037,3389.4,3388.1,2.95143]
[1721138840496,2.95037,3389.4,3387.7,2.95185]
[1721138840497,2.95099,3388.7,3387.7,2.95185]
[1721138840681,2.95089,3388.9,3387.7,2.95185]
[1721138841069,2.95064,3389.1,3387.9,2.95165]
[1721138841070,2.98556024,3388.8,3387.9,2.95165]
[1721138841304,0.03466024,3388.8,3387.9,2.95165]
[1721138841508,2.95091,3388.8,3387.7,2.95179]
[1721138841694,2.95117,3388.5,3387.5,2.2954]
[1721138841915,2.95117,3388.5,3387.5,3.115368]
[1721138842092,2.95117,3388.5,3387.5,6.067338]
[1721138842427,2.951,3388.7,3387.5,6.067338]
[1721138842428,2.95135,3388.3,3387.5,2.2954]
[1721138842586,2.95157,3388.1,3387.5,2.2954]
[1721138842781,2.95157,3388.1,3386.1,12.16]
[1721138842782,0.03466024,3388.4,3386.7,5.2759]
[1721138843016,2.95182,3387.8,3386.8,2.95263]
[1721138843189,2.95124,3388.5,3386.7,2.3232]
[1721138843190,2.98658504,3387.7,3386.7,2.3232]
[1721138843411,0.03470504,3387.7,3386.7,2.3232]
[1721138843617,2.95208,3387.5,3386.7,2.3232]
[1721138843928,2.95146,3388.2,3386.7,2.3232]
[1721138843929,3.70842151,3388.3,3386.7,2.3232]
[1721138844228,2.95159,3388.1,3386.7,2.3232]
[1721138844457,0.06392386,3388.0,3387.1,2.95236]
[1721138844598,3.0502389,3388.0,3386.8,2.95261]
[1721138844783,3.60442151,3388.8,3386.7,2.3232]
[1721138844784,0.09840395,3387.9,3386.7,2.3232]
[1721138845123,2.95177,3387.8,3386.8,2.95261]
[1721138845294,2.95177,3387.8,3386.7,2.3232]
[1721138845295,2.95185,3387.7,3386.7,2.3232]
[1721138845622,0.03461888,3387.6,3386.8,2.95256]
[1721138845823,0.03461888,3387.6,3387.1,2.95232]
[1721138846036,0.06378507,3387.8,3386.7,2.850809]
[1721138846185,0.03461888,3387.5,3386.7,2.3232]
[1721138846386,0.03461888,3387.5,3387.0,2.95246]
[1721138846680,0.06378507,3387.8,3387.1,0.0590398]
[1721138846887,0.0345396,3387.4,3387.0,2.95246]
[1721138847229,0.06378507,3387.8,3387.0,2.95239]
[1721138847525,0.60442151,3389.4,3387.5,2.4687]
[1721138847823,2.95125,3388.4,3387.5,2.4687]
[1721138848197,2.95125,3388.4,3387.5,5.42071]
[1721138848198,0.0345396,3388.3,3387.5,5.42071]
[1721138848398,0.0345396,3388.3,3387.6,2.95187]
[1721138848616,2.95109,3388.6,3387.5,2.4687]
[1721138848834,2.95119,3388.5,3387.5,2.4687]
[1721138849125,2.95166,3388.0,3386.8,2.95258]
[1721138849347,0.07097925,3388.5,3386.6,5.22001]
[1721138849348,2.95168,3387.9,3386.6,5.22001]
[1721138849488,2.95177,3387.8,3386.8,2.95257]
[1721138849693,2.95148,3388.2,3387.1,2.95234]
[1721138849924,0.0345396,3387.7,3387.1,2.95234]
[1721138850127,3.03643965,3388.4,3387.1,0.590487]
[1721138850325,3.03643965,3388.4,3386.6,5.21995]
[1721138850326,0.0345396,3387.6,3386.6,5.21995]
[1721138850574,3.03643965,3388.4,3387.5,2.2706]
[1721138850575,0.03643965,3388.4,3387.5,2.2706]
[1721138850731,2.91368954,3390.2,3387.6,3.654]
[1721138850931,4.49373431,3390.3,3388.3,2.95131]
[1721138850932,2.95026,3389.6,3388.3,2.95131]
[1721138851238,2.95026,3389.6,3388.2,2.95139]
[1721138851239,2.95029,3389.5,3388.4,2.95119]
[1721138851394,3.59,3390.3,3388.6,2.95106]
[1721138851395,2.95009,3389.8,3388.6,2.95106]
[1721138851592,2.94989,3390.0,3388.6,2.95106]
[1721138851593,2.95011,3389.7,3388.6,2.95106]
[1721138851789,0.0345396,3389.6,3388.8,2.95085]
[1721138851995,2.95005,3389.8,3388.8,2.95084]
[1721138852192,2.95005,3389.8,3388.7,0.590225]
[1721138852494,3.59,3390.3,3388.9,2.95074]
[1721138852495,0.0345396,3389.7,3388.9,2.95074]
[1721138852695,2.94974,3390.2,3389.0,2.95065]
[1721138852918,0.0345396,3389.6,3388.8,2.95082]
[1721138853105,2.9495,3390.4,3389.2,2.4512]
[1721138853314,2.9495,3390.4,3388.2,6.05541]
[1721138853315,0.0345396,3389.5,3388.4,2.95117]
[1721138853514,2.95003,3389.8,3388.4,2.95117]
[1721138853515,5.89979,3390.0,3388.6,2.951]
[1721138853715,0.0347963,3389.4,3388.7,2.95097]
[1721138853950,0.0347963,3389.4,3388.5,2.4512]
[1721138853951,2.94964,3390.3,3388.8,0.05900633]
[1721138854246,0.03485313,3389.3,3389.1,2.95063]
[1721138854394,3.59,3390.9,3388.5,5.40231]
[1721138854395,2.94968,3390.2,3388.5,2.4512]
[1721138854594,0.03513219,3390.1,3389.0,2.95072]
[1721138854841,0.03513219,3390.1,3389.2,2.9505]
[1721138855047,2.9499,3390.0,3388.7,2.95096]
[1721138855333,2.9499,3390.0,3388.5,2.4512]
[1721138855334,2.95006,3389.8,3388.5,5.40233]
[1721138855545,2.9501,3389.8,3388.6,3.8454158]
[1721138855949,0.03517179,3389.7,3388.9,2.9508]
[1721138856098,0.03517179,3389.7,3389.0,0.05900113]
[1721138856436,2.94982,3390.1,3389.0,0.05900113]
[1721138856733,2.98537179,3389.6,3388.5,2.4512]
[1721138856970,2.9502,3389.6,3388.5,2.4512]
[1721138857286,3.104,3390.2,3388.5,2.4512]
[1721138857287,2.95046,3389.3,3388.5,2.4512]